fUST/lending_fUST_20260117
["ID","MTS","AMOUNT","RATE_DAILY","PERIOD"]
[402228932,1768612293523,-502.89,0.00023287,3]
[402228933,1768612293532,-1925.58,0.00023287,3]
[402228934,1768612293542,-500.0,0.00023287,3]
[402228935,1768612293551,-500.0,0.00023287,3]
[402228936,1768612293560,-500.0,0.00023287,3]
[402228937,1768612293569,-1041.15,0.00023287,3]
[402228938,1768612293579,-500.0,0.00023287,3]
[402228939,1768612293588,-500.0,0.00023287,3]
[402228940,1768612293597,-500.0,0.00023287,3]
[402228941,1768612293607,-500.0,0.00023287,3]
[402228942,1768612293616,-500.0,0.00023287,3]
[402228943,1768612293626,-500.0,0.00023287,3]
[402228944,1768612293635,-500.0,0.00023287,3]
[402228945,1768612293644,-1088.64,0.00023287,3]
[402228946,1768612293654,-500.0,0.00023287,3]
[402228947,1768612293663,-2379.42,0.00023287,3]
[402228948,1768612293672,-500.0,0.00023287,3]
[402228949,1768612293681,-528.71,0.00023287,3]
[402228950,1768612293691,-500.0,0.00023287,3]
[402228951,1768612293701,-577.81,0.00023287,3]
[402228952,1768612293710,-1069.82,0.00023287,3]
[402228953,1768612293720,-500.0,0.00023287,3]
[402228954,1768612293732,-1058.35,0.00023287,3]
[402228955,1768612293744,-1720.28,0.00023287,3]
[402228956,1768612293753,-805.67,0.00023287,3]
[402228957,1768612293763,-1092.57,0.00023287,3]
[402228958,1768612293773,-500.0,0.00023287,3]
[402228959,1768612293782,-500.0,0.00023287,3]
[402228960,1768612293793,-500.0,0.00023287,3]
[402228961,1768612293803,-500.0,0.00023287,3]
[402228962,1768612293812,-1108.94,0.00023287,3]
[402228963,1768612293823,-500.0,0.00023287,3]
[402228964,1768612293833,-500.0,0.00023287,3]
[402228965,1768612293842,-500.0,0.00023287,3]
[402228966,1768612293851,-500.0,0.00023287,3]
[402228967,1768612293860,-500.0,0.00023287,3]
[402228968,1768612293871,-673.97,0.00023287,3]
[402228969,1768612293880,-607.14,0.00023287,3]
[402228970,1768612293890,-612.67,0.00023287,3]
[402228971,1768612293900,-500.0,0.00023287,3]
[402228972,1768612293909,-500.0,0.00023287,3]
[402228973,1768612293919,-1798.83,0.00023287,3]
[402228974,1768612293929,-559.87,0.00023287,3]
[402228975,1768612293939,-500.0,0.00023287,3]
[402228976,1768612293948,-1066.43,0.00023287,3]
[402228977,1768612293958,-500.0,0.00023287,3]
[402228978,1768612293967,-844.99,0.00023287,3]
[402228979,1768612293976,-500.0,0.00023287,3]
[402228980,1768612293985,-552.5,0.00023287,3]
[402228981,1768612293994,-850.34,0.00023287,3]
[402228982,1768612294004,-1503.99,0.00023287,3]
[402228983,1768612294013,-500.0,0.00023287,3]
[402228984,1768612294022,-500.0,0.00023287,3]
[402228985,1768612294032,-1047.78,0.00023287,3]
[402228986,1768612294042,-2028.81,0.00023287,3]
[402228987,1768612294052,-984.57,0.00023287,3]
[402228988,1768612294062,-500.0,0.00023287,3]
[402228989,1768612294071,-615.63,0.00023287,3]
[402228990,1768612294081,-500.0,0.00023287,3]
[402228991,1768612294091,-500.0,0.00023287,3]
[402228992,1768612294102,-500.0,0.00023287,3]
[402228993,1768612294111,-214.05655846,0.00023287,3]
[402228994,1768612294121,-500.0,0.00023287,3]
[402228995,1768612294131,-1048.01,0.00023287,3]
[402228996,1768612294140,-861.03,0.00023287,3]
[402228997,1768612294150,-630.31,0.00023287,3]
[402228998,1768612294161,-2325.91,0.00023287,3]
[402228999,1768612294170,-666.35,0.00023287,3]
[402229000,1768612294180,-1000.0,0.00023287,2]
[402229001,1768612294189,-696.01,0.00023287,3]
[402229002,1768612294199,-724.03,0.00023287,3]
[402229003,1768612294208,-500.0,0.00023287,3]
[402229004,1768612294218,-845.49,0.00023287,3]
[402229005,1768612294227,-500.0,0.00023287,3]
[402229006,1768612294237,-1122.88,0.00023287,3]
[402229007,1768612294246,-500.0,0.00023287,3]
[402229008,1768612294255,-500.0,0.00023287,3]
[402229009,1768612294265,-779.61,0.00023287,3]
[402229010,1768612294274,-500.0,0.00023287,3]
[402229011,1768612294284,-500.0,0.00023287,3]
[402229012,1768612294293,-567.85983881,0.00023287,3]
[402229013,1768612294302,-500.0,0.00023287,3]
[402229014,1768612294311,-596.29,0.00023287,3]
[402229015,1768612294321,-1501.63,0.00023287,3]
[402229016,1768612294330,-2167.4,0.00023287,3]
[402229017,1768612294340,-526.21250437,0.00023287,3]
[402229018,1768612294349,-816.59,0.00023287,2]
[402229019,1768612294358,-687.65,0.00023287,3]
[402229020,1768612294367,-1854.01,0.00023287,3]
[402229021,1768612294376,-555.87,0.00023287,3]
[402229022,1768612294385,-1200.0,0.00023287,3]
[402229023,1768612294394,-500.0,0.00023287,3]
[402229024,1768612294403,-500.0,0.00023287,3]
[402229025,1768612294422,-500.0,0.00023287,3]
[402229026,1768612294433,-500.0,0.00023287,3]
[402229027,1768612294443,-772.71,0.00023287,3]
[402229028,1768612294452,-983.25,0.00023287,3]
[402229029,1768612294461,-500.0,0.00023287,3]
[402229030,1768612294471,-965.59,0.00023287,3]
[402229031,1768612294480,-500.0,0.00023287,3]
[402229032,1768612294490,-500.0,0.00023287,3]
[402229033,1768612294498,-950.31,0.00023287,3]
[402229034,1768612294508,-789.67,0.00023287,3]
[402229035,1768612294518,-500.0,0.00023287,3]
[402229036,1768612294527,-1345.73,0.00023287,3]
[402229037,1768612294536,-1202.15,0.00023287,3]
[402229038,1768612294545,-500.0,0.00023287,3]
[402229039,1768612294555,-500.0,0.00023287,3]
[402229040,1768612294565,-500.0,0.00023287,3]
[402229041,1768612294574,-500.0,0.00023287,3]
[402229042,1768612294584,-500.0,0.00023287,3]
[402229043,1768612294593,-1060.6,0.00023287,3]
[402229044,1768612294603,-500.0,0.00023287,3]
[402229045,1768612294612,-500.0,0.00023287,3]
[402229046,1768612294622,-500.0,0.00023287,3]
[402229047,1768612294632,-1057.71,0.00023287,3]
[402229048,1768612294642,-525.93,0.00023287,3]
[402229049,1768612294652,-500.0,0.00023287,3]
[402229050,1768612294661,-500.0,0.00023287,3]
[402229051,1768612294671,-611.5319976,0.00023287,3]
[402229052,1768612294681,-500.0,0.00023287,3]
[402229053,1768612294690,-546.17648367,0.00023287,3]
[402229054,1768612294699,-1264.0,0.00023287,3]
[402229055,1768612294710,-500.0,0.00023287,3]
[402229056,1768612294719,-887.1,0.00023287,3]
[402229057,1768612294732,-1572.38,0.00023287,3]
[402229058,1768612294741,-861.54,0.00023287,3]
[402229059,1768612294751,-500.0,0.00023287,3]
[402229060,1768612294760,-500.0,0.00023287,3]
[402229061,1768612294770,-849.14,0.00023287,3]
[402229062,1768612294779,-819.63,0.00023287,3]
[402229063,1768612294788,-525.70782184,0.00023287,3]
[402229064,1768612294798,-500.0,0.00023287,3]
[402229065,1768612294807,-636.06,0.00023287,3]
[402229066,1768612294817,-500.0,0.00023287,3]
[402229067,1768612294827,-553.81,0.00023287,3]
[402229068,1768612294836,-1263.43,0.00023287,3]
[402229069,1768612294846,-1640.86,0.00023287,3]
[402229070,1768612294855,-994.98,0.00023287,3]
[402229071,1768612294864,-1583.3,0.00023287,3]
[402229072,1768612294874,-752.46,0.00023287,3]
[402229073,1768612294883,-296.65123312,0.00023287,3]
[402229074,1768612294892,-500.0,0.00023287,3]
[402229075,1768612294901,-500.0,0.00023287,3]
[402229076,1768612294911,-500.0,0.00023287,3]
[402229077,1768612294920,-1611.33,0.00023287,3]
[402229078,1768612294930,-500.0,0.00023287,3]
[402229079,1768612294940,-1663.66,0.00023287,3]
[402229080,1768612294949,-661.66,0.00023287,3]
[402229081,1768612294959,-500.0,0.00023287,3]
[402229082,1768612294969,-742.29,0.00023287,3]
[402229083,1768612294978,-1291.69,0.00023287,3]
[402229084,1768612294988,-500.0,0.00023287,3]
[402229085,1768612294999,-500.0,0.00023287,3]
[402229086,1768612295008,-675.18,0.00023287,3]
[402229087,1768612295017,-500.0,0.00023287,3]
[402229088,1768612295027,-976.58,0.00023287,3]
[402229089,1768612295036,-500.0,0.00023287,3]
[402229090,1768612295045,-607.94,0.00023287,3]
[402229091,1768612295054,-518.12120658,0.00023287,3]
[402229092,1768612295063,-500.0,0.00023287,3]
[402229093,1768612295072,-558.96,0.00023287,3]
[402229094,1768612295082,-556.64,0.00023287,3]
[402229095,1768612295091,-500.0,0.00023287,3]
[402229096,1768612295100,-500.0,0.00023287,3]
[402229097,1768612295110,-513.79,0.00023287,3]
[402229098,1768612295119,-500.0,0.00023287,3]
[402229099,1768612295128,-500.0,0.00023287,3]
[402229100,1768612295137,-326.57929925,0.00023287,3]
[402229101,1768612295147,-500.0,0.00023287,3]
[402229102,1768612295156,-212.55002111,0.00023287,3]
[402229103,1768612295168,-500.0,0.00023287,3]
[402229104,1768612295177,-500.0,0.00023287,3]
[402229105,1768612295186,-525.64,0.00023287,3]
[402229106,1768612295195,-1585.89,0.00023287,3]
[402229107,1768612295205,-564.3,0.00023287,3]
[402229108,1768612295214,-768.23,0.00023287,3]
[402229109,1768612295223,-500.0,0.00023287,3]
[402229110,1768612295233,-500.0,0.00023287,3]
[402229111,1768612295242,-1622.98,0.00023287,3]
[402229112,1768612295256,-500.0,0.00023287,3]
[402229113,1768612295266,-1235.52,0.00023287,3]
[402229114,1768612295275,-500.0,0.00023287,3]
[402229115,1768612295285,-645.71,0.00023287,3]
[402229116,1768612295294,-500.0,0.00023287,3]
[402229117,1768612295304,-500.0,0.00023287,3]
[402229118,1768612295313,-500.0,0.00023287,3]
[402229119,1768612295323,-854.24,0.00023287,3]
[402229120,1768612295333,-500.0,0.00023287,3]
[402229121,1768612295342,-1159.08,0.00023287,3]
[402229122,1768612295351,-500.0,0.00023287,3]
[402229123,1768612295361,-1832.87,0.00023287,3]
[402229124,1768612295370,-500.0,0.00023287,3]
[402229125,1768612295380,-500.0,0.00023287,3]
[402229126,1768612295389,-1361.89,0.00023287,3]
[402229127,1768612295399,-1015.39,0.00023287,3]
[402229128,1768612295408,-1092.53,0.00023287,3]
[402229129,1768612295418,-500.0,0.00023287,3]
[402229130,1768612295427,-500.0,0.00023287,3]
[402229131,1768612295437,-500.0,0.00023287,3]
[402229132,1768612295446,-500.0,0.00023287,3]
[402229133,1768612295456,-500.0,0.00023287,3]
[402229134,1768612295466,-2080.52,0.00023287,3]
[402229135,1768612295475,-694.83,0.00023287,3]
[402229136,1768612295484,-631.18,0.00023287,3]
[402229137,1768612295494,-1568.63,0.00023287,3]
[402229138,1768612295504,-500.0,0.00023287,3]
[402229139,1768612295513,-500.0,0.00023287,3]
[402229140,1768612295522,-500.0,0.00023287,3]
[402229141,1768612295532,-1023.88,0.00023287,3]
[402229142,1768612295541,-627.95,0.00023287,3]
[402229143,1768612295550,-1025.72,0.00023287,3]
[402229144,1768612295560,-923.34,0.00023287,3]
[402229145,1768612295569,-500.0,0.00023287,3]
[402229146,1768612295579,-546.51,0.00023287,3]
[402229147,1768612295588,-500.0,0.00023287,3]
[402229148,1768612295597,-500.0,0.00023287,3]
[402229149,1768612295607,-500.0,0.00023287,3]
[402229150,1768612295616,-500.0,0.00023287,3]
[402229151,1768612295625,-1133.27,0.00023287,3]
[402229152,1768612295635,-526.63,0.00023287,3]
[402229153,1768612295644,-500.0,0.00023287,3]
[402229154,1768612295654,-616.88,0.00023287,3]
[402229155,1768612295663,-1350.15,0.00023287,3]
[402229156,1768612295672,-500.0,0.00023287,3]
[402229157,1768612295681,-500.0,0.00023287,3]
[402229158,1768612295691,-500.0,0.00023287,3]
[402229159,1768612295700,-503.95,0.00023287,3]
[402229160,1768612295710,-500.0,0.00023287,3]
[402229161,1768612295719,-500.0,0.00023287,3]
[402229162,1768612295730,-1118.18,0.00023287,3]
[402229163,1768612295740,-2041.61,0.00023287,3]
[402229164,1768612295749,-533.43,0.00023287,3]
[402229165,1768612295759,-500.0,0.00023287,3]
[402229166,1768612295768,-500.0,0.00023287,3]
[402229167,1768612295778,-500.0,0.00023287,3]
[402229168,1768612295788,-785.98,0.00023287,3]
[402229169,1768612295797,-500.0,0.00023287,3]
[402229170,1768612295807,-500.0,0.00023287,3]
[402229171,1768612295816,-500.0,0.00023287,3]
[402229172,1768612295825,-500.0,0.00023287,3]
[402229173,1768612295834,-500.0,0.00023287,3]
[402229174,1768612295844,-1720.81,0.00023287,3]
[402229175,1768612295854,-502.37,0.00023287,3]
[402229176,1768612296152,-817.82,0.00023287,3]
[402229177,1768612296163,-500.0,0.00023287,3]
[402229178,1768612296174,-299.92184825,0.00023287,3]
[402229179,1768612296184,-500.0,0.00023287,3]
[402229180,1768612296194,-500.0,0.00023287,3]
[402229181,1768612296203,-500.0,0.00023287,3]
[402229182,1768612296213,-500.0,0.00023287,3]
[402229183,1768612296223,-845.07,0.00023287,3]
[402229184,1768612296232,-500.0,0.00023287,3]
[402229185,1768612296242,-500.0,0.00023287,3]
[402229186,1768612296251,-1219.03,0.00023287,3]
[402229187,1768612296260,-364.38234016,0.00023287,3]
[402229188,1768612296270,-2478.08,0.00023287,3]
[402229189,1768612296279,-500.0,0.00023287,3]
[402229190,1768612296288,-2562.85,0.00023287,3]
[402229191,1768612296298,-782.08,0.00023287,3]
[402229192,1768612296308,-500.0,0.00023287,3]
[402229193,1768612296317,-1683.6,0.00023287,3]
[402229194,1768612296327,-500.0,0.00023287,3]
[402229195,1768612296336,-2019.88,0.00023287,3]
[402229196,1768612296346,-812.22,0.00023287,3]
[402229197,1768612296355,-1783.86,0.00023287,3]
[402229198,1768612296364,-2935.53,0.00023287,3]
[402229199,1768612296373,-500.0,0.00023287,3]
[402229200,1768612296382,-500.0,0.00023287,3]
[402229201,1768612296391,-618.35,0.00023287,3]
[402229202,1768612296400,-500.0,0.00023287,3]
[402229203,1768612296410,-500.0,0.00023287,3]
[402229204,1768612296427,-706.88,0.00023287,3]
[402229205,1768612296447,-500.0,0.00023287,3]
[402229206,1768612296457,-703.68,0.00023287,3]
[402229207,1768612296467,-500.0,0.00023287,3]
[402229208,1768612296476,-500.0,0.00023287,3]
[402229209,1768612296486,-500.0,0.00023287,3]
[402229210,1768612296496,-883.96,0.00023287,3]
[402229211,1768612296505,-1730.4,0.00023287,3]
[402229212,1768612296514,-2229.1,0.00023287,3]
[402229213,1768612296525,-870.56,0.00023287,3]
[402229214,1768612296536,-1965.15,0.00023287,3]
[402229215,1768612296547,-304.34086739,0.00023287,3]
[402229216,1768612296557,-500.0,0.00023287,3]
[402229217,1768612296567,-500.0,0.00023287,3]
[402229218,1768612296576,-1230.17,0.00023287,3]
[402229219,1768612296587,-500.0,0.00023287,3]
[402229220,1768612296598,-500.0,0.00023287,3]
[402229221,1768612296608,-500.0,0.00023287,3]
[402229222,1768612296618,-500.0,0.00023287,3]
[402229223,1768612296628,-716.67,0.00023287,3]
[402229224,1768612296637,-1014.11,0.00023287,3]
[402229225,1768612296648,-1793.94,0.00023287,3]
[402229226,1768612296659,-271.35337008,0.00023287,3]
[402229227,1768612296668,-1251.47,0.00023287,3]
[402229228,1768612296679,-500.0,0.00023287,3]
[402229229,1768612296688,-500.0,0.00023287,3]
[402229230,1768612296697,-1993.75,0.00023287,3]
[402229231,1768612296708,-502.12,0.00023287,3]
[402229232,1768612296720,-500.0,0.00023287,3]
[402229233,1768612296734,-500.0,0.00023287,3]
[402229234,1768612296744,-1188.4,0.00023287,3]
[402229235,1768612296754,-500.0,0.00023287,3]
[402229236,1768612296765,-1029.96,0.00023287,3]
[402229237,1768612296775,-1119.18,0.00023287,3]
[402229238,1768612296790,-529.89480322,0.00023287,3]
[402229239,1768612296799,-512.27,0.00023287,3]
[402229240,1768612296810,-855.99,0.00023287,3]
[402229241,1768612296819,-1815.05,0.00023287,3]
[402229242,1768612296829,-534.52,0.00023287,3]
[402229243,1768612296840,-500.0,0.00023287,3]
[402229244,1768612296849,-535.55,0.00023287,3]
[402229245,1768612296859,-967.4,0.00023287,3]
[402229246,1768612296870,-500.0,0.00023287,3]
[402229247,1768612296881,-500.0,0.00023287,3]
[402229248,1768612296891,-1136.87,0.00023287,3]
[402229249,1768612296900,-525.76,0.00023287,3]
[402229250,1768612296910,-2084.88,0.00023287,3]
[402229251,1768612296919,-500.0,0.00023287,3]
[402229252,1768612296930,-1471.9,0.00023287,3]
[402229253,1768612296939,-500.0,0.00023287,3]
[402229254,1768612296949,-8798.3,0.00023287,3]
[402229255,1768612296959,-564.01,0.00023287,3]
[402229256,1768612296968,-500.0,0.00023287,3]
[402229257,1768612296980,-958.68,0.00023287,3]
[402229258,1768612296989,-1479.47,0.00023287,3]
[402229259,1768612296999,-500.0,0.00023287,3]
[402229260,1768612297008,-500.0,0.00023287,3]
[402229261,1768612297018,-787.07,0.00023287,3]
[402229262,1768612297027,-500.0,0.00023287,3]
[402229263,1768612297036,-976.75,0.00023287,3]
[402229264,1768612297046,-1453.5,0.00023287,3]
[402229265,1768612297056,-567.04025541,0.00023287,3]
[402229266,1768612297066,-1386.93,0.00023287,3]
[402229267,1768612297075,-500.0,0.00023287,3]
[402229268,1768612297084,-634.10206377,0.00023287,3]
[402229269,1768612297093,-1742.45,0.00023287,3]
[402229270,1768612297102,-500.0,0.00023287,3]
[402229271,1768612297113,-500.0,0.00023287,3]
[402229272,1768612297123,-500.0,0.00023287,3]
[402229273,1768612297132,-3952.31,0.00023287,3]
[402229274,1768612297141,-500.0,0.00023287,3]
[402229275,1768612297151,-614.82,0.00023287,3]
[402229276,1768612297160,-158.13313211,0.00023287,3]
[402229277,1768612297169,-523.59,0.00023287,3]
[402229278,1768612297178,-500.0,0.00023287,3]
[402229279,1768612297187,-500.0,0.00023287,3]
[402229280,1768612297197,-1627.08,0.00023287,3]
[402229281,1768612297206,-500.0,0.00023287,3]
[402229282,1768612297216,-500.0,0.00023287,3]
[402229283,1768612297225,-500.0,0.00023287,3]
[402229284,1768612297234,-500.0,0.00023287,3]
[402229285,1768612297244,-1692.55,0.00023287,3]
[402229286,1768612297253,-580.78,0.00023287,3]
[402229287,1768612297263,-500.0,0.00023287,3]
[402229288,1768612297272,-2942.71,0.00023287,3]
[402229289,1768612297282,-1514.63,0.00023287,3]
[402229290,1768612297291,-500.0,0.00023287,3]
[402229291,1768612297300,-1493.78,0.00023287,3]
[402229292,1768612297309,-500.0,0.00023287,3]
[402229293,1768612297319,-500.0,0.00023287,3]
[402229294,1768612297328,-500.0,0.00023287,3]
[402229295,1768612297337,-500.0,0.00023287,3]
[402229296,1768612297347,-500.0,0.00023287,3]
[402229297,1768612297365,-660.52,0.00023287,3]
[402229298,1768612297385,-500.0,0.00023287,3]
[402229299,1768612297399,-1418.91,0.00023287,3]
[402229300,1768612297408,-730.62,0.00023287,3]
[402229301,1768612297422,-538.0870004,0.00023287,3]
[402229302,1768612297431,-754.34,0.00023287,3]
[402229303,1768612297442,-500.0,0.00023287,3]
[402229304,1768612297452,-500.0,0.00023287,3]
[402229305,1768612297477,-1145.41,0.00023287,3]
[402229306,1768612297499,-500.0,0.00023287,3]
[402229307,1768612297520,-500.0,0.00023287,3]
[402229308,1768612297540,-565.62,0.00023287,3]
[402229309,1768612297558,-500.0,0.00023287,3]
[402229310,1768612297575,-981.72,0.00023287,3]
[402229311,1768612297594,-500.0,0.00023287,3]
[402229312,1768612297608,-479.89598374,0.00023287,3]
[402229313,1768612297626,-593.53,0.00023287,3]
[402229314,1768612297646,-2793.44,0.00023287,3]
[402229315,1768612297662,-500.0,0.00023287,3]
[402229316,1768612297679,-500.0,0.00023287,3]
[402229317,1768612297694,-856.9,0.00023287,3]
[402229318,1768612297711,-1473.27,0.00023287,3]
[402229319,1768612297728,-542.78,0.00023287,3]
[402229320,1768612297745,-500.0,0.00023287,3]
[402229321,1768612297760,-673.29,0.00023287,3]
[402229322,1768612297775,-500.0,0.00023287,3]
[402229323,1768612297791,-713.13,0.00023287,3]
[402229324,1768612297806,-1228.66,0.00023287,3]
[402229325,1768612297821,-1791.95,0.00023287,3]
[402229326,1768612297836,-855.17,0.00023287,3]
[402229327,1768612297852,-657.4,0.00023287,3]
[402229328,1768612297868,-500.0,0.00023287,3]
[402229329,1768612297882,-433.95901662,0.00023287,3]
[402229330,1768612297897,-756.59,0.00023287,3]
[402229331,1768612297912,-500.0,0.00023287,3]
[402229332,1768612297927,-665.41,0.00023287,3]
[402229333,1768612297942,-602.92,0.00023287,3]
[402229334,1768612297957,-962.94,0.00023287,3]
[402229335,1768612297973,-500.0,0.00023287,3]
[402229336,1768612297988,-500.0,0.00023287,3]
[402229337,1768612298002,-722.91,0.00023287,3]
[402229338,1768612298017,-1519.18,0.00023287,3]
[402229339,1768612298032,-1639.28,0.00023287,3]
[402229340,1768612298050,-500.0,0.00023287,3]
[402229341,1768612298066,-528.9,0.00023287,3]
[402229342,1768612298082,-500.0,0.00023287,3]
[402229343,1768612298097,-500.0,0.00023287,3]
[402229344,1768612298113,-1186.99,0.00023287,3]
[402229345,1768612298129,-1994.44,0.00023287,3]
[402229346,1768612298145,-523.14,0.00023287,3]
[402229347,1768612298160,-933.57,0.00023287,3]
[402229348,1768612298176,-1547.34,0.00023287,3]
[402229349,1768612298191,-1004.8,0.00023287,3]
[402229350,1768612298206,-500.0,0.00023287,3]
[402229351,1768612298222,-16346.06,0.00023287,3]
[402229352,1768612298236,-500.0,0.00023287,3]
[402229353,1768612298252,-1226.67,0.00023287,3]
[402229354,1768612298268,-612.9,0.00023287,3]
[402229355,1768612298282,-656.08,0.00023287,3]
[402229356,1768612298296,-500.0,0.00023287,3]
[402229357,1768612298312,-500.0,0.00023287,3]
[402229358,1768612298327,-500.0,0.00023287,3]
[402229359,1768612298342,-1118.7,0.00023287,3]
[402229360,1768612298357,-1409.14,0.00023287,3]
[402229361,1768612298372,-500.0,0.00023287,3]
[402229362,1768612298387,-500.0,0.00023287,3]
[402229363,1768612298403,-527.88375936,0.00023287,3]
[402229364,1768612298418,-500.0,0.00023287,3]
[402229365,1768612298433,-500.0,0.00023287,3]
[402229366,1768612298448,-1384.22,0.00023287,3]
[402229367,1768612298462,-500.0,0.00023287,3]
[402229368,1768612298477,-500.0,0.00023287,3]
[402229369,1768612298491,-500.0,0.00023287,3]
[402229370,1768612298507,-655.85,0.00023287,3]
[402229371,1768612298521,-500.0,0.00023287,3]
[402229372,1768612298539,-1683.12,0.00023287,3]
[402229373,1768612298554,-500.0,0.00023287,3]
[402229374,1768612298569,-1141.76,0.00023287,3]
[402229375,1768612298583,-2466.84,0.00023287,3]
[402229376,1768612298598,-500.0,0.00023287,3]
[402229377,1768612298612,-500.0,0.00023287,3]
[402229378,1768612298627,-500.0,0.00023287,3]
[402229379,1768612298642,-500.0,0.00023287,3]
[402229380,1768612298657,-500.0,0.00023287,3]
[402229381,1768612298672,-703.27,0.00023287,3]
[402229382,1768612298692,-500.0,0.00023287,3]
[402229383,1768612298708,-762.01,0.00023287,3]
[402229384,1768612298724,-1884.7,0.00023287,3]
[402229385,1768612298743,-754.32,0.00023287,3]
[402229386,1768612298759,-500.0,0.00023287,3]
[402229387,1768612298776,-500.0,0.00023287,3]
[402229388,1768612298792,-504.06,0.00023287,3]
[402229389,1768612298807,-500.0,0.00023287,3]
[402229390,1768612298822,-500.0,0.00023287,3]
[402229391,1768612298836,-500.0,0.00023287,3]
[402229392,1768612298852,-500.0,0.00023287,3]
[402229393,1768612298867,-1595.17,0.00023287,3]
[402229394,1768612298882,-1407.78,0.00023287,3]
[402229395,1768612298897,-1591.45,0.00023287,3]
[402229396,1768612298914,-500.0,0.00023287,3]
[402229397,1768612298929,-1092.06,0.00023287,3]
[402229398,1768612298945,-500.0,0.00023287,3]
[402229399,1768612298961,-899.14,0.00023287,3]
[402229400,1768612298976,-500.0,0.00023287,3]
[402229401,1768612298991,-885.73,0.00023287,3]
[402229402,1768612299007,-500.0,0.00023287,3]
[402229403,1768612299023,-1029.09,0.00023287,3]
[402229404,1768612299038,-500.0,0.00023287,3]
[402229405,1768612299054,-500.0,0.00023287,3]
[402229406,1768612299069,-615.64,0.00023287,3]
[402229407,1768612299085,-500.0,0.00023287,3]
[402229408,1768612299099,-500.0,0.00023287,3]
[402229409,1768612299114,-818.32,0.00023287,3]
[402229410,1768612299128,-500.0,0.00023287,2]
[402229411,1768612299145,-500.0,0.00023287,3]
[402229412,1768612299160,-1293.79,0.00023287,3]
[402229413,1768612299176,-599.42,0.00023287,3]
[402229414,1768612299192,-685.41,0.00023287,3]
[402229415,1768612299206,-1974.67,0.00023287,3]
[402229416,1768612299222,-500.0,0.00023287,3]
[402229417,1768612299236,-1560.37,0.00023287,3]
[402229418,1768612299251,-500.0,0.00023287,3]
[402229419,1768612299266,-500.0,0.00023287,3]
[402229420,1768612299281,-500.0,0.00023287,2]
[402229421,1768612299295,-500.0,0.00023287,3]
[402229422,1768612299310,-500.0,0.00023287,3]
[402229423,1768612299325,-500.0,0.00023287,3]
[402229424,1768612299340,-2128.03,0.00023287,3]
[402229425,1768612299354,-2225.62,0.00023287,3]
[402229426,1768612299370,-500.0,0.00023287,3]
[402229427,1768612299380,-500.0,0.00023287,2]
[402229428,1768612299389,-500.0,0.00023287,3]
[402229429,1768612299399,-931.4,0.00023287,3]
[402229430,1768612299408,-500.0,0.00023287,3]
[402229431,1768612299417,-500.0,0.00023287,3]